[Event "*** Titled Tuesday Blitz"]
[Site "Chess.com"]
[Date "2020.05.19"]
[Round "3"]
[White "pedro_nascimento85"]
[Black "Chuchofrio1"]
[Result "0-1"]
[WhiteElo "1729"]
[BlackElo "2261"]
[TimeControl "180+1"]
[EndTime "12:29:40 PDT"]
[Termination "Chuchofrio1 won on time"]

1. d4 {[%clk 0:03:00.9]} 1... d5 {[%clk 0:02:59.6]} 2. c4 {[%clk 0:02:59.6]}
2... e6 {[%clk 0:02:58.9]} 3. Nc3 {[%clk 0:02:58.8]} 3... Nf6 {[%clk 0:02:58.7]}
4. cxd5 {[%clk 0:02:58.5]} 4... exd5 {[%clk 0:02:58.6]} 5. Bg5 {[%clk
0:02:57.8]} 5... Nbd7 {[%clk 0:02:57.2]} 6. e3 {[%clk 0:02:53.4]} 6... c6 {[%clk
0:02:57.1]} 7. Bd3 {[%clk 0:02:53.4]} 7... Be7 {[%clk 0:02:55.8]} 8. Nge2 {[%clk
0:02:51.4]} 8... O-O {[%clk 0:02:53.5]} 9. Qc2 {[%clk 0:02:51]} 9... Re8 {[%clk
0:02:49.2]} 10. O-O {[%clk 0:02:49.9]} 10... Nf8 {[%clk 0:02:49.2]} 11. f3
{[%clk 0:02:45.5]} 11... Be6 {[%clk 0:02:48]} 12. Kh1 {[%clk 0:02:42.1]} 12...
Rc8 {[%clk 0:02:47.6]} 13. e4 {[%clk 0:02:40.6]} 13... dxe4 {[%clk 0:02:40.7]}
14. fxe4 {[%clk 0:02:39.6]} 14... Ng4 {[%clk 0:02:40.8]} 15. Bxe7 {[%clk
0:02:36.9]} 15... Qxe7 {[%clk 0:02:41.7]} 16. Qd2 {[%clk 0:02:37]} 16... Qh4
{[%clk 0:02:38.2]} 17. Qf4 {[%clk 0:02:07.7]} 17... Ng6 {[%clk 0:02:20.7]} 18.
Qg3 {[%clk 0:02:06.3]} 18... Qh6 {[%clk 0:02:16.8]} 19. Nf4 {[%clk 0:01:34.7]}
19... Nxf4 {[%clk 0:01:57.7]} 20. Qxf4 {[%clk 0:01:33.7]} 20... Qxf4 {[%clk
0:01:28.8]} 21. Rxf4 {[%clk 0:01:31.6]} 21... c5 {[%clk 0:01:29]} 22. d5 {[%clk
0:01:23.7]} 22... Bd7 {[%clk 0:01:28.2]} 23. h3 {[%clk 0:01:20.8]} 23... Ne5
{[%clk 0:01:28.2]} 24. Bc2 {[%clk 0:01:17.4]} 24... a6 {[%clk 0:01:28.4]} 25. a4
{[%clk 0:01:14]} 25... Re7 {[%clk 0:01:26.3]} 26. Raf1 {[%clk 0:01:07.6]} 26...
f6 {[%clk 0:01:20.3]} 27. Ne2 {[%clk 0:01:03.2]} 27... Be8 {[%clk 0:01:16.7]}
28. Ng3 {[%clk 0:00:59.6]} 28... Ng6 {[%clk 0:01:16.6]} 29. Nf5 {[%clk
0:00:55.4]} 29... Rd7 {[%clk 0:01:10.7]} 30. R4f2 {[%clk 0:00:52.5]} 30... Bf7
{[%clk 0:01:09.5]} 31. h4 {[%clk 0:00:47.2]} 31... Ne5 {[%clk 0:01:07.6]} 32.
Ne3 {[%clk 0:00:43.6]} 32... Bg6 {[%clk 0:01:06.1]} 33. g4 {[%clk 0:00:21.3]}
33... b5 {[%clk 0:01:03.3]} 34. h5 {[%clk 0:00:20.8]} 34... Bf7 {[%clk 0:01:01]}
35. axb5 {[%clk 0:00:19.3]} 35... axb5 {[%clk 0:01:00.8]} 36. Rg1 {[%clk
0:00:14.6]} 36... h6 {[%clk 0:00:55.6]} 37. Nf5 {[%clk 0:00:10.1]} 37... b4
{[%clk 0:00:55.4]} 38. b3 {[%clk 0:00:09.6]} 38... Ra7 {[%clk 0:00:53.4]} 39.
Kh2 {[%clk 0:00:07.7]} 39... Re8 {[%clk 0:00:52.5]} 40. Rgg2 {[%clk 0:00:07.3]}
40... Rd7 {[%clk 0:00:51]} 41. Rg3 {[%clk 0:00:06.1]} 41... c4 {[%clk
0:00:51.5]} 42. bxc4 {[%clk 0:00:05.9]} 42... Nxc4 {[%clk 0:00:52.4]} 43. Bb3
{[%clk 0:00:05.6]} 43... Ne5 {[%clk 0:00:51.2]} 44. Rd2 {[%clk 0:00:04.9]} 44...
Rc8 {[%clk 0:00:50.6]} 45. Kh3 {[%clk 0:00:05]} 45... Rc3 {[%clk 0:00:49.2]} 46.
Ba2 {[%clk 0:00:05.3]} 46... Nf3 {[%clk 0:00:46.7]} 47. Rf2 {[%clk 0:00:04.6]}
47... Ng5+ {[%clk 0:00:46.9]} 48. Kh4 {[%clk 0:00:04.2]} 48... Rxg3 {[%clk
0:00:46.4]} 49. Nxg3 {[%clk 0:00:04.4]} 49... Ra7 {[%clk 0:00:43.8]} 50. Rb2
{[%clk 0:00:04.2]} 50... Nf3+ {[%clk 0:00:41.8]} 51. Kh3 {[%clk 0:00:03.7]}
51... Ne5 {[%clk 0:00:41.8]} 52. Bb3 {[%clk 0:00:03.5]} 52... Nd3 {[%clk
0:00:41.1]} 53. Rb1 {[%clk 0:00:03.2]} 53... Nf4+ {[%clk 0:00:41.3]} 54. Kh2
{[%clk 0:00:02.6]} 54... Ra3 {[%clk 0:00:41.8]} 55. Bc2 {[%clk 0:00:02.4]} 55...
Rc3 {[%clk 0:00:41.7]} 56. Bd1 {[%clk 0:00:02.2]} 56... Nd3 {[%clk 0:00:40.5]}
57. Rb3 {[%clk 0:00:01.9]} 57... Be8 {[%clk 0:00:30.9]} 58. Rxc3 {[%clk
0:00:01.6]} 58... bxc3 {[%clk 0:00:31.8]} 59. Bc2 {[%clk 0:00:02.5]} 59... Bb5
{[%clk 0:00:31.5]} 60. Bxd3 {[%clk 0:00:01.8]} 60... Bxd3 {[%clk 0:00:31.3]} 0-1

[Event "*** Titled Tuesday Blitz"]
[Site "Chess.com"]
[Date "2020.05.19"]
[Round "3"]
[White "atwalcb"]
[Black "ElGasanov"]
[Result "0-1"]
[WhiteElo "2331"]
[BlackElo "2741"]
[TimeControl "180+1"]
[EndTime "12:29:43 PDT"]
[Termination "ElGasanov won by resignation"]

1. d4 {[%clk 0:03:00.9]} 1... d6 {[%clk 0:02:57.9]} 2. e4 {[%clk 0:02:57]} 2...
Nf6 {[%clk 0:02:57]} 3. Nc3 {[%clk 0:02:56.3]} 3... Nbd7 {[%clk 0:02:56.7]} 4.
Nf3 {[%clk 0:02:53.1]} 4... e5 {[%clk 0:02:57]} 5. Bc4 {[%clk 0:02:50]} 5... Be7
{[%clk 0:02:57.3]} 6. O-O {[%clk 0:02:49.4]} 6... O-O {[%clk 0:02:57.8]} 7. a4
{[%clk 0:02:46]} 7... c6 {[%clk 0:02:56.1]} 8. h3 {[%clk 0:02:40.4]} 8... a5
{[%clk 0:02:54.2]} 9. b3 {[%clk 0:02:37.2]} 9... Nb6 {[%clk 0:02:52]} 10. Be2
{[%clk 0:02:35.9]} 10... exd4 {[%clk 0:02:49.2]} 11. Nxd4 {[%clk 0:02:35.4]}
11... d5 {[%clk 0:02:49.2]} 12. e5 {[%clk 0:02:27.1]} 12... Ne8 {[%clk
0:02:48.7]} 13. f4 {[%clk 0:02:26.5]} 13... f6 {[%clk 0:02:35.9]} 14. Bb2 {[%clk
0:02:17.9]} 14... Nc7 {[%clk 0:02:22.7]} 15. Kh1 {[%clk 0:02:13.5]} 15... fxe5
{[%clk 0:02:16.1]} 16. fxe5 {[%clk 0:02:12.8]} 16... Ne6 {[%clk 0:02:12.3]} 17.
Nxe6 {[%clk 0:01:57.2]} 17... Bxe6 {[%clk 0:02:13.2]} 18. Bd3 {[%clk 0:01:57.1]}
18... Rxf1+ {[%clk 0:02:04.7]} 19. Qxf1 {[%clk 0:01:56.5]} 19... Nd7 {[%clk
0:02:04]} 20. Qe2 {[%clk 0:01:54]} 20... Nc5 {[%clk 0:01:57.2]} 21. Rf1 {[%clk
0:01:45.3]} 21... Qd7 {[%clk 0:01:57]} 22. Nd1 {[%clk 0:01:41.7]} 22... Nxd3
{[%clk 0:01:47.5]} 23. Qxd3 {[%clk 0:01:40.7]} 23... Rf8 {[%clk 0:01:43.6]} 24.
Ne3 {[%clk 0:01:40.4]} 24... Rxf1+ {[%clk 0:01:40]} 25. Qxf1 {[%clk 0:01:35.8]}
25... Bc5 {[%clk 0:01:30.9]} 26. Qd3 {[%clk 0:01:25]} 26... Bxh3 {[%clk
0:01:25.6]} 27. Kh2 {[%clk 0:01:02.4]} 27... Be6 {[%clk 0:01:21.1]} 28. Bd4
{[%clk 0:01:01.3]} 28... Qe7 {[%clk 0:01:11.1]} 29. g3 {[%clk 0:00:55.1]} 29...
h6 {[%clk 0:00:46.2]} 30. Qc3 {[%clk 0:00:52.9]} 30... Bb4 {[%clk 0:00:43.9]}
31. Qd3 {[%clk 0:00:48.6]} 31... Qg5 {[%clk 0:00:43.3]} 32. Ng2 {[%clk
0:00:43.6]} 32... Bf5 {[%clk 0:00:38.3]} 33. Qe2 {[%clk 0:00:35.2]} 33... Be4
{[%clk 0:00:37.7]} 34. Nf4 {[%clk 0:00:34.3]} 34... Be7 {[%clk 0:00:33.2]} 35.
Bc3 {[%clk 0:00:29.2]} 35... Qf5 {[%clk 0:00:30.7]} 36. Qh5 {[%clk 0:00:25.9]}
36... Qxh5+ {[%clk 0:00:29.5]} 37. Nxh5 {[%clk 0:00:25.8]} 37... Bxc2 {[%clk
0:00:27.5]} 38. Bxa5 {[%clk 0:00:25.8]} 38... Bxb3 {[%clk 0:00:25.7]} 39. Nf4
{[%clk 0:00:25.6]} 39... Bxa4 {[%clk 0:00:22.9]} 40. Kg2 {[%clk 0:00:25.9]}
40... Bc2 {[%clk 0:00:20]} 41. Bb6 {[%clk 0:00:25]} 41... Be4+ {[%clk
0:00:20.3]} 42. Kf2 {[%clk 0:00:25]} 42... Kf7 {[%clk 0:00:18.3]} 43. Ne2 {[%clk
0:00:22.4]} 43... c5 {[%clk 0:00:16.6]} 44. Ke3 {[%clk 0:00:20.5]} 44... Bh1
{[%clk 0:00:14.4]} 45. Nf4 {[%clk 0:00:20.5]} 45... g5 {[%clk 0:00:10]} 46. Nd3
{[%clk 0:00:19.2]} 46... d4+ {[%clk 0:00:09.4]} 47. Kd2 {[%clk 0:00:17.6]} 47...
c4 {[%clk 0:00:09.8]} 48. Nf2 {[%clk 0:00:17.8]} 48... Bb4+ {[%clk 0:00:09.9]}
49. Kc1 {[%clk 0:00:17.4]} 49... Ba3+ {[%clk 0:00:07.1]} 50. Kd2 {[%clk
0:00:17]} 50... c3+ {[%clk 0:00:07.4]} 51. Kd1 {[%clk 0:00:17.1]} 51... Bf3+
{[%clk 0:00:07]} 52. Kc2 {[%clk 0:00:16.8]} 52... Bb4 {[%clk 0:00:03]} 53. Bxd4
{[%clk 0:00:16.7]} 53... Ke6 {[%clk 0:00:03.6]} 54. Nd3 {[%clk 0:00:15.6]} 54...
Be4 {[%clk 0:00:03.1]} 55. Be3 {[%clk 0:00:14.3]} 55... Kd5 {[%clk 0:00:02.9]}
56. g4 {[%clk 0:00:12.7]} 56... Kc4 {[%clk 0:00:02.8]} 0-1

[Event "*** Titled Tuesday Blitz"]
[Site "Chess.com"]
[Date "2020.05.19"]
[Round "3"]
[White "Kapibara_Warri0r"]
[Black "Mashenka97"]
[Result "1-0"]
[WhiteElo "2090"]
[BlackElo "2341"]
[TimeControl "180+1"]
[EndTime "12:29:43 PDT"]
[Termination "Kapibara_Warri0r won on time"]

1. e4 {[%clk 0:03:00.9]} 1... c5 {[%clk 0:02:58.8]} 2. Nf3 {[%clk 0:03:00.8]}
2... d6 {[%clk 0:02:58.3]} 3. d4 {[%clk 0:03:01.1]} 3... cxd4 {[%clk 0:02:58]}
4. Nxd4 {[%clk 0:03:02]} 4... Nf6 {[%clk 0:02:58]} 5. Nc3 {[%clk 0:03:02.1]}
5... a6 {[%clk 0:02:57.8]} 6. Bg5 {[%clk 0:03:02.1]} 6... Nbd7 {[%clk
0:02:56.6]} 7. f4 {[%clk 0:03:01.6]} 7... h6 {[%clk 0:02:55.2]} 8. Bxf6 {[%clk
0:02:43.3]} 8... Nxf6 {[%clk 0:02:47.1]} 9. Qf3 {[%clk 0:02:26.2]} 9... e5
{[%clk 0:02:25.7]} 10. Nf5 {[%clk 0:02:13.4]} 10... g6 {[%clk 0:02:11.2]} 11.
Ne3 {[%clk 0:02:08.5]} 11... Bg7 {[%clk 0:02:04.8]} 12. f5 {[%clk 0:02:04]}
12... O-O {[%clk 0:02:01.6]} 13. Ncd5 {[%clk 0:01:56.3]} 13... Nxd5 {[%clk
0:01:47.8]} 14. Nxd5 {[%clk 0:01:57.2]} 14... Qa5+ {[%clk 0:01:46.2]} 15. c3
{[%clk 0:01:44]} 15... gxf5 {[%clk 0:01:33.3]} 16. exf5 {[%clk 0:01:35.3]} 16...
e4 {[%clk 0:01:29.3]} 17. Qd1 {[%clk 0:01:11.6]} 17... Bxf5 {[%clk 0:01:12.2]}
18. Be2 {[%clk 0:00:32.3]} 18... Be6 {[%clk 0:00:58.8]} 19. Ne3 {[%clk
0:00:26.5]} 19... Rad8 {[%clk 0:00:37.1]} 20. Nc4 {[%clk 0:00:15.3]} 20... Qc5
{[%clk 0:00:32.5]} 21. Nd2 {[%clk 0:00:08.6]} 21... b5 {[%clk 0:00:26.5]} 22.
Nxe4 {[%clk 0:00:05.8]} 22... Qe3 {[%clk 0:00:25.3]} 23. Ng3 {[%clk 0:00:04.5]}
23... Bc4 {[%clk 0:00:23.2]} 24. Qd2 {[%clk 0:00:03.7]} 24... Qxd2+ {[%clk
0:00:20.6]} 25. Kxd2 {[%clk 0:00:04.6]} 25... Be5 {[%clk 0:00:18.9]} 26. Bxc4
{[%clk 0:00:04.2]} 26... bxc4 {[%clk 0:00:18.2]} 27. Ne4 {[%clk 0:00:03.8]}
27... d5 {[%clk 0:00:16.8]} 28. Nc5 {[%clk 0:00:03.7]} 28... Rd6 {[%clk
0:00:15.7]} 29. Nb7 {[%clk 0:00:03.2]} 29... Rd7 {[%clk 0:00:14.6]} 30. Nc5
{[%clk 0:00:03.1]} 30... Rd6 {[%clk 0:00:14.1]} 31. a4 {[%clk 0:00:03.5]} 31...
Rc6 {[%clk 0:00:13]} 32. Nd7 {[%clk 0:00:03.5]} 32... Re8 {[%clk 0:00:12.1]} 33.
Rhe1 {[%clk 0:00:02.9]} 33... f6 {[%clk 0:00:11]} 34. Nxe5 {[%clk 0:00:02.2]}
34... fxe5 {[%clk 0:00:10.5]} 35. Re3 {[%clk 0:00:02.3]} 35... Kf7 {[%clk
0:00:09.8]} 36. Rg3 {[%clk 0:00:02.3]} 36... Rg6 {[%clk 0:00:08.8]} 37. Rf1+
{[%clk 0:00:02.6]} 37... Kg7 {[%clk 0:00:07.7]} 38. Rxg6+ {[%clk 0:00:02.8]}
38... Kxg6 {[%clk 0:00:08.6]} 39. Re1 {[%clk 0:00:02.5]} 39... d4 {[%clk
0:00:08]} 40. cxd4 {[%clk 0:00:02.2]} 40... Rd8 {[%clk 0:00:07.3]} 41. Rxe5
{[%clk 0:00:01.7]} 41... Rxd4+ {[%clk 0:00:06.2]} 42. Kc3 {[%clk 0:00:02.2]}
42... Rg4 {[%clk 0:00:07.1]} 43. Re6+ {[%clk 0:00:02.4]} 43... Kf5 {[%clk
0:00:05.2]} 44. Rxa6 {[%clk 0:00:03.3]} 44... Rxg2 {[%clk 0:00:04.6]} 45. Kxc4
{[%clk 0:00:03.6]} 45... Rxh2 {[%clk 0:00:03.6]} 46. Ra5+ {[%clk 0:00:03.5]}
46... Kf4 {[%clk 0:00:02.2]} 47. Rd5 {[%clk 0:00:03.8]} 47... Rh4 {[%clk
0:00:02.4]} 48. Rd4+ {[%clk 0:00:03.5]} 48... Kg3 {[%clk 0:00:03.3]} 49. Rxh4
{[%clk 0:00:03.7]} 49... Kxh4 {[%clk 0:00:01.6]} 50. a5 {[%clk 0:00:04.6]} 50...
h5 {[%clk 0:00:02.5]} 51. a6 {[%clk 0:00:05.5]} 51... Kg4 {[%clk 0:00:03]} 52.
a7 {[%clk 0:00:06.4]} 52... h4 {[%clk 0:00:03.7]} 53. a8=Q {[%clk 0:00:07.3]}
53... h3 {[%clk 0:00:04.1]} 54. Qh1 {[%clk 0:00:08.2]} 54... h2 {[%clk
0:00:04.9]} 55. b4 {[%clk 0:00:09.1]} 1-0

[Event "*** Titled Tuesday Blitz"]
[Site "Chess.com"]
[Date "2020.05.19"]
[Round "3"]
[White "IMRosen"]
[Black "BocharovD"]
[Result "0-1"]
[WhiteElo "2596"]
[BlackElo "2841"]
[TimeControl "180+1"]
[EndTime "12:29:44 PDT"]
[Termination "BocharovD won on time"]

1. d4 {[%clk 0:03:00.9]} 1... Nf6 {[%clk 0:02:59.6]} 2. Bf4 {[%clk 0:03:01.4]}
2... c5 {[%clk 0:02:58.9]} 3. e3 {[%clk 0:03:01.7]} 3... d5 {[%clk 0:02:58.3]}
4. Nf3 {[%clk 0:03:01.6]} 4... Nc6 {[%clk 0:02:57.8]} 5. Nbd2 {[%clk 0:03:01.6]}
5... Qb6 {[%clk 0:02:57.6]} 6. dxc5 {[%clk 0:03:01.7]} 6... Qxb2 {[%clk
0:02:57.4]} 7. Rb1 {[%clk 0:03:02]} 7... Qc3 {[%clk 0:02:57.7]} 8. Bb5 {[%clk
0:03:02]} 8... e6 {[%clk 0:02:57.8]} 9. O-O {[%clk 0:03:02.3]} 9... Be7 {[%clk
0:02:55.9]} 10. e4 {[%clk 0:03:02.8]} 10... O-O {[%clk 0:02:39.2]} 11. e5 {[%clk
0:03:00.4]} 11... Nd7 {[%clk 0:02:37.5]} 12. Nb3 {[%clk 0:02:59.5]} 12... Qb4
{[%clk 0:02:12.8]} 13. Nbd4 {[%clk 0:02:55.5]} 13... Qxc5 {[%clk 0:02:10.2]} 14.
Bd3 {[%clk 0:02:31.3]} 14... Nxd4 {[%clk 0:01:47]} 15. Nxd4 {[%clk 0:02:30.2]}
15... g6 {[%clk 0:01:44.4]} 16. Nf3 {[%clk 0:02:07.4]} 16... f6 {[%clk
0:01:41.9]} 17. exf6 {[%clk 0:01:29.9]} 17... Bxf6 {[%clk 0:01:41]} 18. Re1
{[%clk 0:01:26.8]} 18... e5 {[%clk 0:01:34.2]} 19. Rb5 {[%clk 0:01:17.2]} 19...
Qd6 {[%clk 0:01:27.5]} 20. Bh6 {[%clk 0:00:48.3]} 20... Rd8 {[%clk 0:01:23.9]}
21. c4 {[%clk 0:00:27.6]} 21... Nc5 {[%clk 0:01:16.9]} 22. cxd5 {[%clk
0:00:21.1]} 22... Nxd3 {[%clk 0:01:04.6]} 23. Qxd3 {[%clk 0:00:20.1]} 23... Bf5
{[%clk 0:01:05.1]} 24. Qb3 {[%clk 0:00:17.7]} 24... b6 {[%clk 0:01:04]} 25. Rb4
{[%clk 0:00:16.6]} 25... Qxd5 {[%clk 0:00:59.1]} 26. Qxd5+ {[%clk 0:00:09.7]}
26... Rxd5 {[%clk 0:00:58.2]} 27. g4 {[%clk 0:00:10.4]} 27... Bd3 {[%clk
0:00:55.3]} 28. Bg5 {[%clk 0:00:03.4]} 28... Kg7 {[%clk 0:00:46.8]} 29. h4
{[%clk 0:00:02.5]} 29... Rc8 {[%clk 0:00:41.6]} 30. Bxf6+ {[%clk 0:00:02.8]}
30... Kxf6 {[%clk 0:00:41.1]} 31. Ng5 {[%clk 0:00:03.7]} 31... h6 {[%clk
0:00:37.5]} 32. Ne4+ {[%clk 0:00:04.3]} 32... Bxe4 {[%clk 0:00:29.4]} 33. Rbxe4
{[%clk 0:00:05.2]} 33... g5 {[%clk 0:00:27.8]} 34. hxg5+ {[%clk 0:00:04.7]}
34... hxg5 {[%clk 0:00:28.7]} 35. R1e2 {[%clk 0:00:04.6]} 35... Rcc5 {[%clk
0:00:26.7]} 36. Kg2 {[%clk 0:00:04.8]} 36... Rd4 {[%clk 0:00:27.1]} 37. Kg3
{[%clk 0:00:04.6]} 37... Rc3+ {[%clk 0:00:26.5]} 38. f3 {[%clk 0:00:04.1]} 38...
Rdd3 {[%clk 0:00:26.3]} 39. Rf2 {[%clk 0:00:02.8]} 39... Re3 {[%clk 0:00:25.6]}
40. Ra4 {[%clk 0:00:03.1]} 40... Ra3 {[%clk 0:00:21.2]} 41. Rxa3 {[%clk
0:00:02.9]} 41... Rxa3 {[%clk 0:00:20.6]} 42. Rc2 {[%clk 0:00:03.7]} 42... e4
{[%clk 0:00:20.6]} 43. Rc6+ {[%clk 0:00:03.2]} 43... Ke7 {[%clk 0:00:20.9]} 44.
Rg6 {[%clk 0:00:01.9]} 44... Rxf3+ {[%clk 0:00:19.8]} 45. Kg2 {[%clk 0:00:02.6]}
45... Ra3 {[%clk 0:00:20.7]} 46. Rxg5 {[%clk 0:00:03.2]} 46... Rxa2+ {[%clk
0:00:21.1]} 47. Kf1 {[%clk 0:00:03.4]} 47... e3 {[%clk 0:00:21]} 48. Re5+ {[%clk
0:00:03.3]} 48... Kf6 {[%clk 0:00:21.9]} 49. Rxe3 {[%clk 0:00:03.8]} 49... Kg5
{[%clk 0:00:22.8]} 50. Ke1 {[%clk 0:00:03.7]} 50... Kxg4 {[%clk 0:00:22.6]} 51.
Kd1 {[%clk 0:00:04.3]} 51... Kf4 {[%clk 0:00:23.2]} 52. Re6 {[%clk 0:00:03.8]}
52... Ra5 {[%clk 0:00:23.6]} 53. Kc2 {[%clk 0:00:03.2]} 53... Kf5 {[%clk
0:00:24]} 54. Re7 {[%clk 0:00:03.4]} 54... Kf6 {[%clk 0:00:22.4]} 55. Re8 {[%clk
0:00:03.5]} 55... Re5 {[%clk 0:00:22.3]} 56. Rd8 {[%clk 0:00:02.4]} 56... Ke7
{[%clk 0:00:21.9]} 57. Ra8 {[%clk 0:00:02.1]} 57... Ra5 {[%clk 0:00:22.2]} 58.
Rc8 {[%clk 0:00:02]} 58... Kd7 {[%clk 0:00:22.2]} 59. Kb3 {[%clk 0:00:02.6]}
59... Kxc8 {[%clk 0:00:21.8]} 0-1

[Event "*** Titled Tuesday Blitz"]
[Site "Chess.com"]
[Date "2020.05.19"]
[Round "3"]
[White "1977Ivan"]
[Black "ChristopherYoo"]
[Result "1/2-1/2"]
[WhiteElo "2622"]
[BlackElo "2878"]
[TimeControl "180+1"]
[EndTime "12:29:46 PDT"]
[Termination "Game drawn - insufficient material"]

1. d4 {[%clk 0:03:00.9]} 1... Nf6 {[%clk 0:02:58.9]} 2. c4 {[%clk 0:03:00.4]}
2... g6 {[%clk 0:02:59.1]} 3. Nc3 {[%clk 0:03:00.5]} 3... d5 {[%clk 0:02:59.3]}
4. Nf3 {[%clk 0:02:59.5]} 4... Bg7 {[%clk 0:02:58.9]} 5. Qb3 {[%clk 0:03:00]}
5... dxc4 {[%clk 0:02:54.5]} 6. Qxc4 {[%clk 0:03:00]} 6... O-O {[%clk
0:02:54.7]} 7. e4 {[%clk 0:03:00]} 7... Nc6 {[%clk 0:02:53.9]} 8. Be2 {[%clk
0:02:59.3]} 8... Bg4 {[%clk 0:02:47.6]} 9. d5 {[%clk 0:02:57.9]} 9... Bxf3
{[%clk 0:02:42.5]} 10. gxf3 {[%clk 0:02:55.8]} 10... Na5 {[%clk 0:02:19]} 11.
Qd3 {[%clk 0:02:55.2]} 11... Nd7 {[%clk 0:02:12.4]} 12. f4 {[%clk 0:02:48.5]}
12... c6 {[%clk 0:01:48]} 13. e5 {[%clk 0:01:39.3]} 13... cxd5 {[%clk
0:01:33.7]} 14. Nxd5 {[%clk 0:01:39.3]} 14... Nc5 {[%clk 0:01:07.1]} 15. Qf3
{[%clk 0:01:21.8]} 15... e6 {[%clk 0:01:02.4]} 16. Be3 {[%clk 0:01:11.6]} 16...
Rc8 {[%clk 0:00:43.9]} 17. Nc3 {[%clk 0:01:07.3]} 17... Nd3+ {[%clk 0:00:40.4]}
18. Bxd3 {[%clk 0:01:02.8]} 18... Qxd3 {[%clk 0:00:41.3]} 19. Rd1 {[%clk
0:01:02.5]} 19... Qa6 {[%clk 0:00:34.7]} 20. Qe2 {[%clk 0:01:01.4]} 20... Nc4
{[%clk 0:00:34.2]} 21. O-O {[%clk 0:00:59]} 21... Rfd8 {[%clk 0:00:21.8]} 22.
Rxd8+ {[%clk 0:00:52.9]} 22... Rxd8 {[%clk 0:00:22.7]} 23. b3 {[%clk 0:00:50.1]}
23... Nxe3 {[%clk 0:00:19.8]} 24. fxe3 {[%clk 0:00:49.2]} 24... Qxe2 {[%clk
0:00:19.1]} 25. Nxe2 {[%clk 0:00:48.6]} 25... Rd2 {[%clk 0:00:19.6]} 26. Nd4
{[%clk 0:00:48.4]} 26... Bh6 {[%clk 0:00:12.3]} 27. Rc1 {[%clk 0:00:46.8]} 27...
Bxf4 {[%clk 0:00:06.5]} 28. Rc8+ {[%clk 0:00:45.8]} 28... Kg7 {[%clk 0:00:06.6]}
29. Nxe6+ {[%clk 0:00:43.3]} 29... fxe6 {[%clk 0:00:07.5]} 30. exf4 {[%clk
0:00:43.4]} 30... Rxa2 {[%clk 0:00:07.7]} 31. Rc7+ {[%clk 0:00:42]} 31... Kh6
{[%clk 0:00:08]} 32. Rxb7 {[%clk 0:00:42.2]} 32... Kh5 {[%clk 0:00:07.5]} 33. h3
{[%clk 0:00:36]} 33... Kh4 {[%clk 0:00:06.9]} 34. Rxh7+ {[%clk 0:00:33.9]} 34...
Kg3 {[%clk 0:00:07.3]} 35. Kf1 {[%clk 0:00:33.6]} 35... Kxf4 {[%clk 0:00:07.5]}
36. Rg7 {[%clk 0:00:31.1]} 36... Kf5 {[%clk 0:00:07.3]} 37. Kg1 {[%clk
0:00:27.1]} 37... a5 {[%clk 0:00:07.2]} 38. Rg8 {[%clk 0:00:20.2]} 38... Ra3
{[%clk 0:00:07.2]} 39. Rb8 {[%clk 0:00:18.1]} 39... Kxe5 {[%clk 0:00:05.1]} 40.
Kg2 {[%clk 0:00:18.2]} 40... Kd4 {[%clk 0:00:05.3]} 41. Kg3 {[%clk 0:00:17.4]}
41... Kc3 {[%clk 0:00:05.7]} 42. Kf4 {[%clk 0:00:15.4]} 42... Rxb3 {[%clk
0:00:05.5]} 43. Ra8 {[%clk 0:00:15.3]} 43... Kb4 {[%clk 0:00:05.5]} 44. h4
{[%clk 0:00:14.4]} 44... a4 {[%clk 0:00:05.5]} 45. Kg5 {[%clk 0:00:11.9]} 45...
a3 {[%clk 0:00:05.7]} 46. Kxg6 {[%clk 0:00:10.7]} 46... Rh3 {[%clk 0:00:05.9]}
47. h5 {[%clk 0:00:10.2]} 47... Kb3 {[%clk 0:00:05.9]} 48. h6 {[%clk 0:00:10]}
48... a2 {[%clk 0:00:05.7]} 49. h7 {[%clk 0:00:09.3]} 49... Kb2 {[%clk
0:00:05.7]} 50. Rb8+ {[%clk 0:00:08.5]} 50... Kc1 {[%clk 0:00:04.8]} 51. Ra8
{[%clk 0:00:08.5]} 51... Kb2 {[%clk 0:00:05.1]} 52. Rb8+ {[%clk 0:00:08.6]}
52... Ka1 {[%clk 0:00:05.5]} 53. Rb7 {[%clk 0:00:06]} 53... e5 {[%clk
0:00:05.6]} 54. Kf5 {[%clk 0:00:05.8]} 54... Rh5+ {[%clk 0:00:02.8]} 55. Ke4
{[%clk 0:00:05.4]} 55... Rxh7 {[%clk 0:00:02]} 56. Rxh7 {[%clk 0:00:04.5]} 56...
Kb2 {[%clk 0:00:02.9]} 57. Rb7+ {[%clk 0:00:04.2]} 57... Kc2 {[%clk 0:00:03.3]}
58. Ra7 {[%clk 0:00:04.2]} 58... Kb1 {[%clk 0:00:03.9]} 59. Rb7+ {[%clk
0:00:03.5]} 59... Kc2 {[%clk 0:00:04]} 60. Ra7 {[%clk 0:00:03.7]} 60... Kb2
{[%clk 0:00:04.6]} 61. Rxa2+ {[%clk 0:00:03.7]} 61... Kxa2 {[%clk 0:00:05]} 62.
Kxe5 {[%clk 0:00:04.5]} 1/2-1/2